fUST/lending_fUST_20240902
["ID","MTS","AMOUNT","RATE_DAILY","PERIOD"]
[336938519,1725252650348,-500.0,0.00024931,2]
[336938520,1725252650360,-500.0,0.00024931,2]
[336938521,1725252650370,-500.0,0.00024931,2]
[336938522,1725252650379,-500.0,0.00024931,2]
[336938523,1725252650388,-500.0,0.00024931,2]
[336938524,1725252650397,-500.0,0.00024931,2]
[336938525,1725252650406,-500.0,0.00024931,2]
[336938526,1725252650415,-500.0,0.00024931,2]
[336938527,1725252650426,-500.0,0.00024931,2]
[336938528,1725252650437,-500.0,0.00024931,2]
[336938529,1725252650450,-500.0,0.00024931,2]
[336938530,1725252650460,-628.05,0.00024931,2]
[336938531,1725252650470,-500.0,0.00024931,2]
[336938532,1725252650480,-500.0,0.00024931,2]
[336938533,1725252650489,-500.0,0.00024931,2]
[336938534,1725252650497,-505.96564613,0.00024931,2]
[336938535,1725252650506,-559.60149088,0.00024931,2]
[336938536,1725252650516,-500.0,0.00024931,2]
[336938537,1725252650526,-505.27028494,0.00024931,2]
[336938538,1725252650536,-567.69,0.00024931,2]
[336938539,1725252650547,-500.0,0.00024931,2]
[336938540,1725252650561,-500.0,0.00024931,2]
[336938541,1725252650579,-500.0,0.00024931,2]
[336938542,1725252650590,-500.0,0.00024931,2]
[336938543,1725252650601,-827.31,0.00024931,2]
[336938544,1725252650610,-500.0,0.00024931,2]
[336938545,1725252650621,-518.95,0.00024931,2]
[336938546,1725252650632,-500.0,0.00024931,2]
[336938547,1725252650641,-501.45025341,0.00024931,2]
[336938548,1725252650651,-500.0,0.00024931,2]
[336938549,1725252650660,-910.8,0.00024931,2]
[336938550,1725252650670,-288.97975478,0.00024931,2]
[336938551,1725252650679,-500.0,0.00024931,2]
[336938552,1725252650689,-500.0,0.00024931,2]
[336938553,1725252650699,-500.0,0.00024931,2]
[336938554,1725252650709,-500.0,0.00024931,2]
[336938555,1725252650719,-500.0,0.00024931,2]
[336938556,1725252650728,-500.0,0.00024931,2]
[336938557,1725252650739,-500.0,0.00024931,2]
[336938558,1725252650748,-500.0,0.00024931,2]
[336938559,1725252650758,-500.0,0.00024931,2]
[336938560,1725252650768,-251.9642432,0.00024931,2]
[336938561,1725252650778,-500.0,0.00024931,2]
[336938562,1725252650789,-500.0,0.00024931,2]
[336938563,1725252650799,-500.0,0.00024931,2]
[336938564,1725252650809,-500.0,0.00024931,2]
[336938565,1725252650820,-500.0,0.00024931,2]
[336938566,1725252650830,-500.0,0.00024931,2]
[336938567,1725252650840,-500.0,0.00024931,2]
[336938568,1725252650850,-500.0,0.00024931,2]
[336938569,1725252650859,-500.0,0.00024931,2]
[336938570,1725252650870,-758.43,0.00024931,2]
[336938571,1725252650879,-500.0,0.00024931,2]
[336938572,1725252650889,-500.0,0.00024931,2]
[336938573,1725252650899,-500.0,0.00024931,2]
[336938574,1725252650909,-500.0,0.00024931,2]
[336938575,1725252650919,-500.0,0.00024931,2]
[336938576,1725252650928,-500.0,0.00024931,2]
[336938577,1725252650938,-500.0,0.00024931,2]
[336938578,1725252650948,-750.4,0.00024931,2]
[336938579,1725252650958,-1127.17,0.00024931,2]
[336938580,1725252650967,-500.0,0.00024931,2]
[336938581,1725252650977,-500.0,0.00024931,2]
[336938582,1725252650987,-500.0,0.00024931,2]
[336938583,1725252650996,-717.29,0.00024931,2]
[336938584,1725252651006,-500.0,0.00024931,2]
[336938585,1725252651016,-500.0,0.00024931,2]
[336938586,1725252651026,-612.5,0.00024931,2]
[336938587,1725252651036,-503.96917444,0.00024931,2]
[336938588,1725252651045,-500.0,0.00024931,2]
[336938589,1725252651055,-500.0,0.00024931,2]
[336938590,1725252651064,-500.0,0.00024931,2]
[336938591,1725252651074,-500.0,0.00024931,2]
[336938592,1725252651083,-500.0,0.00024931,2]
[336938593,1725252651093,-500.0,0.00024931,2]
[336938594,1725252651103,-500.0,0.00024931,2]
[336938595,1725252651113,-500.0,0.00024931,2]
[336938596,1725252651123,-500.0,0.00024931,2]
[336938597,1725252651132,-500.0,0.00024931,2]
[336938598,1725252651142,-501.26837633,0.00024931,2]
[336938599,1725252651155,-500.0,0.00024931,2]
[336938600,1725252651165,-395.57423842,0.00024931,2]
[336938601,1725252651175,-500.0,0.00024931,2]
[336938602,1725252651184,-500.0,0.00024931,2]
[336938603,1725252651195,-746.06,0.00024931,2]
[336938604,1725252651204,-500.0,0.00024931,2]
[336938605,1725252651214,-500.0,0.00024931,2]
[336938606,1725252651228,-494.12628695,0.00024931,2]
[336938607,1725252651238,-500.0,0.00024931,2]
[336938608,1725252651249,-500.0,0.00024931,2]
[336938609,1725252651259,-580.39382741,0.00024931,2]
[336938610,1725252651270,-500.0,0.00024931,2]
[336938611,1725252651280,-1516.94,0.00024931,2]
[336938612,1725252651290,-500.0,0.00024931,2]
[336938613,1725252651300,-1052.66,0.00024931,2]
[336938614,1725252651310,-500.0,0.00024931,2]
[336938615,1725252651319,-500.0,0.00024931,2]
[336938616,1725252651329,-500.0,0.00024931,2]
[336938617,1725252651338,-1889.38,0.00024931,2]
[336938618,1725252651348,-500.0,0.00024931,2]
[336938619,1725252651358,-500.0,0.00024931,2]
[336938620,1725252651368,-500.0,0.00024931,2]
[336938621,1725252651378,-582.66,0.00024931,2]
[336938622,1725252651388,-595.1,0.00024931,2]
[336938623,1725252651398,-1513.39,0.00024931,2]
[336938624,1725252651407,-500.0,0.00024931,2]
[336938625,1725252651417,-500.0,0.00024931,2]
[336938626,1725252651428,-500.0,0.00024931,2]
[336938627,1725252651437,-500.0,0.00024931,2]
[336938628,1725252651449,-567.41,0.00024931,2]
[336938629,1725252651467,-500.0,0.00024931,2]
[336938630,1725252651476,-1088.52,0.00024931,2]
[336938631,1725252651485,-500.0,0.00024931,2]
[336938632,1725252651495,-1340.32,0.00024931,2]
[336938633,1725252651504,-500.0,0.00024931,2]
[336938634,1725252651514,-500.0,0.00024931,2]
[336938635,1725252651523,-2193.53,0.00024931,2]
[336938636,1725252651533,-500.0,0.00024931,2]
[336938637,1725252651542,-500.0,0.00024931,2]
[336938638,1725252651551,-500.0,0.00024931,2]
[336938639,1725252651562,-151.0,0.00024931,7]
[336938640,1725252651572,-151.0,0.00024931,7]
[336938641,1725252651582,-251.64996,0.00024931,7]
[336938642,1725252651591,-500.0,0.00024931,2]
[336938643,1725252651601,-500.0,0.00024931,2]
[336938644,1725252651610,-500.0,0.00024931,2]
[336938645,1725252651619,-500.0,0.00024931,2]
[336938646,1725252651629,-500.0,0.00024931,2]
[336938647,1725252651641,-500.0,0.00024931,2]
[336938648,1725252651651,-500.0,0.00024931,2]
[336938649,1725252651660,-500.0,0.00024931,2]
[336938650,1725252651670,-500.0,0.00024931,2]
[336938651,1725252651684,-500.0,0.00024931,2]
[336938652,1725252651694,-500.0,0.00024931,2]
[336938653,1725252651704,-500.0,0.00024931,2]
[336938654,1725252651713,-9576.64,0.00024931,2]
[336938655,1725252651723,-500.0,0.00024931,2]
[336938656,1725252651733,-500.0,0.00024931,2]
[336938657,1725252651743,-500.0,0.00024931,2]
[336938658,1725252651756,-500.0,0.00024931,2]
[336938659,1725252651765,-511.83,0.00024931,2]
[336938660,1725252651775,-500.0,0.00024931,2]
[336938661,1725252651785,-1274.44,0.00024931,2]
[336938662,1725252651795,-1684.07,0.00024931,2]
[336938663,1725252651805,-500.0,0.00024931,2]
[336938664,1725252651815,-1410.31,0.00024931,2]
[336938665,1725252651825,-500.0,0.00024931,2]
[336938666,1725252651834,-500.0,0.00024931,2]
[336938667,1725252651845,-500.0,0.00024931,2]
[336938668,1725252651857,-500.0,0.00024931,2]
[336938669,1725252651868,-500.0,0.00024931,2]
[336938670,1725252651878,-200.0,0.00024931,2]
[336938671,1725252651888,-500.0,0.00024931,2]
[336938672,1725252651898,-500.0,0.00024931,2]
[336938673,1725252651908,-2148.04,0.00024931,2]
[336938674,1725252651917,-505.10251526,0.00024931,2]
[336938675,1725252651927,-500.0,0.00024931,2]
[336938676,1725252651937,-500.0,0.00024931,2]
[336938677,1725252651949,-500.0,0.00024931,2]
[336938678,1725252651959,-1143.94,0.00024931,2]
[336938679,1725252651969,-500.0,0.00024931,2]
[336938680,1725252651979,-582.5826632,0.00024931,2]
[336938681,1725252651989,-500.0,0.00024931,2]
[336938682,1725252651999,-1116.46,0.00024931,2]
[336938683,1725252652011,-812.68,0.00024931,2]
[336938684,1725252652020,-500.0,0.00024931,2]
[336938685,1725252652030,-500.0,0.00024931,2]
[336938686,1725252652042,-500.0,0.00024931,2]
[336938687,1725252652051,-500.0,0.00024931,2]
[336938688,1725252652061,-500.0,0.00024931,2]
[336938689,1725252652071,-1001.21,0.00024931,2]
[336938690,1725252652080,-500.0,0.00024931,2]
[336938691,1725252652090,-808.49,0.00024931,2]
[336938692,1725252652100,-1303.62,0.00024931,2]
[336938693,1725252652109,-500.0,0.00024931,2]
[336938694,1725252652119,-500.0,0.00024931,2]
[336938695,1725252652128,-500.0,0.00024931,2]
[336938696,1725252652138,-500.0,0.00024931,2]
[336938697,1725252652148,-500.0,0.00024931,2]
[336938698,1725252652158,-500.0,0.00024931,2]
[336938699,1725252652167,-500.0,0.00024931,2]
[336938700,1725252652177,-181.24101756,0.00024931,2]
[336938701,1725252652186,-1036.0,0.00024931,2]
[336938702,1725252652196,-500.0,0.00024931,2]
[336938703,1725252652205,-2069.15,0.00024931,2]
[336938704,1725252652215,-500.0,0.00024931,2]
[336938705,1725252652224,-500.0,0.00024931,2]
[336938706,1725252652234,-500.0,0.00024931,2]
[336938707,1725252652244,-524.17558271,0.00024931,2]
[336938708,1725252652254,-500.0,0.00024931,2]
[336938709,1725252652263,-500.0,0.00024931,2]
[336938710,1725252652273,-500.0,0.00024931,2]
[336938711,1725252652282,-500.0,0.00024931,2]
[336938712,1725252652292,-500.0,0.00024931,2]
[336938713,1725252652302,-3734.39,0.00024931,2]
[336938714,1725252652311,-501.80702055,0.00024931,2]
[336938715,1725252652320,-1206.09,0.00024931,2]
[336938716,1725252652330,-992.34,0.00024931,2]
[336938717,1725252652339,-1377.73,0.00024931,2]
[336938718,1725252652349,-151.0,0.00024931,7]
[336938719,1725252652358,-282.0,0.00024931,7]
[336938720,1725252652368,-1698.05,0.00024931,2]
[336938721,1725252652377,-500.0,0.00024931,2]
[336938722,1725252652387,-500.0,0.00024931,2]
[336938723,1725252652396,-500.0,0.00024931,2]
[336938724,1725252652405,-1206.52,0.00024931,2]
[336938725,1725252652415,-500.0,0.00024931,2]
[336938726,1725252652424,-729.78,0.00024931,2]
[336938727,1725252652434,-500.0,0.00024931,2]
[336938728,1725252652443,-515.3,0.00024931,2]
[336938729,1725252652453,-566.86701025,0.00024931,2]
[336938730,1725252652462,-824.04,0.00024931,2]
[336938731,1725252652471,-500.0,0.00024931,2]
[336938732,1725252652481,-743.35,0.00024931,2]
[336938733,1725252652490,-500.0,0.00024931,2]
[336938734,1725252652500,-990.53,0.00024931,2]
[336938735,1725252652509,-500.0,0.00024931,2]
[336938736,1725252652518,-1008.69,0.00024931,2]
[336938737,1725252652527,-500.0,0.00024931,2]
[336938738,1725252652537,-812.34,0.00024931,2]
[336938739,1725252652547,-500.0,0.00024931,2]
[336938740,1725252652559,-500.0,0.00024931,2]
[336938741,1725252652569,-1105.76,0.00024931,2]
[336938742,1725252652578,-500.0,0.00024931,2]
[336938743,1725252652587,-500.0,0.00024931,2]
[336938744,1725252652598,-509.6084453,0.00024931,2]
[336938745,1725252652607,-500.0,0.00024931,2]
[336938746,1725252652617,-504.28990011,0.00024931,2]
[336938747,1725252652627,-500.0,0.00024931,2]
[336938748,1725252652638,-681.6,0.00024931,2]
[336938749,1725252652648,-500.0,0.00024931,2]
[336938750,1725252652657,-500.0,0.00024931,2]
[336938751,1725252652666,-502.81969004,0.00024931,2]
[336938752,1725252652676,-261.52864841,0.00024931,2]
[336938753,1725252652687,-500.0,0.00024931,2]
[336938754,1725252652696,-500.0,0.00024931,2]
[336938755,1725252652705,-649.37,0.00024931,2]
[336938756,1725252652715,-691.42,0.00024931,2]
[336938757,1725252652724,-503.21397657,0.00024931,2]
[336938758,1725252652733,-500.0,0.00024931,2]
[336938759,1725252652743,-500.0,0.00024931,2]
[336938760,1725252652752,-500.0,0.00024931,2]
[336938761,1725252652762,-1219.59,0.00024931,2]
[336938762,1725252652771,-500.0,0.00024931,2]
[336938763,1725252652780,-500.0,0.00024931,2]
[336938764,1725252652790,-1205.27,0.00024931,2]
[336938765,1725252652799,-500.0,0.00024931,2]
[336938766,1725252652808,-500.0,0.00024931,2]
[336938767,1725252652819,-500.0,0.00024931,2]
[336938768,1725252652830,-573.8,0.00024931,2]
[336938769,1725252652840,-1922.95670727,0.00024931,2]
[336938770,1725252653128,-500.0,0.00024657,2]
[336938771,1725252653139,-53.21713821,0.00024657,2]
[336938772,1725252653151,-446.78286179,0.00024657,2]
[336938773,1725252653161,-500.0,0.00024657,2]
[336938774,1725252653170,-258.20344793,0.00024657,2]
[336938775,1725252653186,-241.79655207,0.00024657,2]
[336938776,1725252653196,-500.0,0.0002493,2]
[336938777,1725252653205,-500.0,0.0002493,2]
[336938778,1725252653214,-574.57893935,0.0002493,2]
[336938779,1725252653224,-3739.55329273,0.00024931,2]
[336938780,1725252653233,-500.0,0.00024931,2]
[336938781,1725252653242,-500.0,0.00024931,2]
[336938782,1725252653252,-575.79,0.00024931,2]
[336938783,1725252653261,-500.0,0.00024931,2]
[336938784,1725252653408,-1149.64,0.00024931,2]
[336938785,1725252653418,-503.74499091,0.00024931,2]
[336938786,1725252653427,-500.0,0.00024931,2]
[336938787,1725252653437,-572.41,0.00024931,2]
[336938788,1725252653447,-500.0,0.00024931,2]
[336938789,1725252653457,-500.0,0.00024931,2]
[336938790,1725252653467,-500.0,0.00024931,2]
[336938791,1725252653478,-945.66,0.00024931,2]
[336938792,1725252653489,-500.0,0.00024931,2]
[336938793,1725252653498,-1434.04,0.00024931,2]
[336938794,1725252653507,-500.0,0.00024931,2]
[336938795,1725252653517,-500.0,0.00024931,2]
[336938796,1725252653526,-1362.8,0.00024931,2]
[336938797,1725252653535,-2681.55,0.00024931,2]
[336938798,1725252653545,-500.0,0.00024931,2]
[336938799,1725252653556,-500.0,0.00024931,2]
[336938800,1725252653566,-1034.63,0.00024931,2]
[336938801,1725252653576,-500.0,0.00024931,2]
[336938802,1725252653585,-968.22,0.00024931,2]
[336938803,1725252653594,-1036.54,0.00024931,2]
[336938804,1725252653605,-2344.19,0.00024931,2]
[336938805,1725252653614,-6684.19,0.00024931,2]
[336938806,1725252653623,-1170.24,0.00024931,2]
[336938807,1725252653633,-500.0,0.00024931,2]
[336938808,1725252653642,-500.0,0.00024931,2]
[336938809,1725252653652,-460.69700446,0.00024931,2]
[336938810,1725252653661,-500.0,0.00024931,2]
[336938811,1725252653670,-500.0,0.00024931,2]
[336938812,1725252653679,-500.0,0.00024931,2]
[336938813,1725252653688,-500.0,0.00024931,2]
[336938814,1725252653698,-963.03,0.00024931,2]
[336938815,1725252653707,-933.38,0.00024931,2]
[336938816,1725252653716,-161.60604739,0.00024931,2]
[336938817,1725252653725,-500.0,0.00024931,2]
[336938818,1725252653735,-500.0,0.00024931,2]
[336938819,1725252653744,-500.0,0.00024931,2]
[336938820,1725252653755,-500.0,0.00024931,2]
[336938821,1725252653764,-500.0,0.00024931,2]
[336938822,1725252653774,-500.0,0.00024931,2]
[336938823,1725252653783,-500.0,0.00024931,2]
[336938824,1725252653792,-500.0,0.00024931,2]
[336938825,1725252653802,-880.78,0.00024931,2]
[336938826,1725252653811,-500.0,0.00024931,2]
[336938827,1725252653820,-1209.2,0.00024931,2]
[336938828,1725252653830,-500.0,0.00024931,2]
[336938829,1725252653840,-500.0,0.00024931,2]
[336938830,1725252653849,-500.0,0.00024931,2]
[336938831,1725252653859,-500.0,0.00024931,2]
[336938832,1725252653870,-500.0,0.00024931,2]
[336938833,1725252653879,-395.17663262,0.00024931,2]
[336938834,1725252653889,-500.0,0.00024931,2]
[336938835,1725252653898,-176.557798,0.00024964,2]
[336938836,1725252653908,-151.0,0.00024964,7]
[336938837,1725252653917,-151.0,0.00024964,7]
[336938838,1725252653927,-274.68903164,0.00024968,2]
[336938839,1725252653937,-500.0,0.00024973,2]
[336938840,1725252653947,-923.16078325,0.00025,2]
[336938841,1725252653956,-159.0,0.00025,2]
[336938842,1725252653966,-350.0,0.00025,2]
[336938843,1725252653975,-503.59009373,0.00025,2]
[336938844,1725252653985,-179.57,0.00025105,7]
[336938845,1725252653995,-179.44975275,0.00025105,7]
[336938846,1725252654004,-179.44975275,0.00025105,7]
[336938847,1725252654013,-179.44975275,0.00025105,7]
[336938848,1725252654023,-164.31213355,0.00025105,7]
[336938849,1725252654032,-164.31213355,0.00025105,7]
[336938850,1725252654042,-274.68903164,0.00025105,2]
[336938851,1725252654051,-306.911496,0.00025164,2]
[336938852,1725252654061,-1031.18,0.00025199,2]
[336938853,1725252654071,-1031.18,0.00025199,2]
[336938854,1725252654080,-1031.18,0.00025199,2]
[336938855,1725252654090,-1031.18,0.00025199,2]
[336938856,1725252654103,-1031.38,0.00025199,2]
[336938857,1725252654114,-3000.0,0.000252,2]
[336938858,1725252654123,-503.86991175,0.00025205,2]
[336938859,1725252654133,-497.44548974,0.00025205,2]
[336938860,1725252654143,-500.0,0.00025205,2]
[336938861,1725252654153,-296.30526398,0.00025205,2]
[336938862,1725252654163,-500.0,0.00025205,2]
[336938863,1725252654173,-500.0,0.00025205,2]
[336938864,1725252654186,-500.0,0.00025205,2]
[336938865,1725252654197,-500.0,0.00025205,2]
[336938866,1725252654207,-500.0,0.00025205,2]
[336938867,1725252654216,-524.35669593,0.00025205,2]
[336938868,1725252654226,-585.54,0.00025205,2]
[336938869,1725252654235,-500.0,0.00025205,2]
[336938870,1725252654245,-500.0,0.00025205,2]
[336938871,1725252654256,-500.0,0.00025205,2]
[336938872,1725252654266,-500.0,0.00025205,2]
[336938873,1725252654276,-500.0,0.00025205,2]
[336938874,1725252654285,-510.33048496,0.00025205,2]
[336938875,1725252654295,-505.12970038,0.00025205,2]
[336938876,1725252654304,-500.0,0.00025205,2]
[336938877,1725252654314,-500.0,0.00025205,2]
[336938878,1725252654324,-500.0,0.00025205,2]
[336938879,1725252654334,-500.0,0.00025205,2]
[336938880,1725252654345,-500.0,0.00025205,2]
[336938881,1725252654355,-151.0,0.00025205,7]
[336938882,1725252654365,-500.0,0.00025205,2]
[336938883,1725252654375,-500.0,0.00025205,2]
[336938884,1725252654385,-500.0,0.00025205,2]
[336938885,1725252654394,-500.0,0.00025205,2]
[336938886,1725252654406,-767.55,0.00025205,2]
[336938887,1725252654416,-500.0,0.00025205,2]
[336938888,1725252654425,-500.0,0.00025205,2]
[336938889,1725252654435,-500.0,0.00025205,2]
[336938890,1725252654445,-500.0,0.00025205,2]
[336938891,1725252654455,-506.73489142,0.00025205,2]
[336938892,1725252654464,-500.0,0.00025205,2]
[336938893,1725252654474,-461.40907727,0.00025205,2]
[336938894,1725252654484,-500.0,0.00025205,2]
[336938895,1725252654494,-500.0,0.00025205,2]
[336938896,1725252654504,-500.0,0.00025205,2]
[336938897,1725252654514,-500.0,0.00025205,2]
[336938898,1725252654523,-500.0,0.00025205,2]
[336938899,1725252654533,-500.0,0.00025205,2]
[336938900,1725252654542,-151.0,0.00025205,7]
[336938901,1725252654553,-511.19595774,0.00025205,2]
[336938902,1725252654563,-151.0,0.00025205,7]
[336938903,1725252654573,-505.35678504,0.00025205,2]
[336938904,1725252654583,-500.0,0.00025205,2]
[336938905,1725252654592,-602.44,0.00025205,2]
[336938906,1725252654603,-500.0,0.00025205,2]
[336938907,1725252654612,-500.0,0.00025205,2]
[336938908,1725252654622,-500.0,0.00025205,2]
[336938909,1725252654633,-500.0,0.00025205,2]
[336938910,1725252654644,-500.0,0.00025205,2]
[336938911,1725252654654,-500.0,0.00025205,2]
[336938912,1725252654663,-500.0,0.00025205,2]
[336938913,1725252654673,-500.0,0.00025205,2]
[336938914,1725252654683,-500.0,0.00025205,2]
[336938915,1725252654692,-500.0,0.00025205,2]
[336938916,1725252654709,-515.25116768,0.00025205,2]
[336938917,1725252654721,-500.0,0.00025205,2]
[336938918,1725252654730,-500.0,0.00025205,2]
[336938919,1725252654739,-500.0,0.00025205,2]
[336938920,1725252654748,-500.0,0.00025205,2]
[336938921,1725252654757,-500.0,0.00025205,2]
[336938922,1725252654767,-500.0,0.00025205,2]
[336938923,1725252654775,-500.0,0.00025205,2]
[336938924,1725252654784,-500.0,0.00025205,2]
[336938925,1725252654793,-383.56486565,0.00025205,2]
[336938926,1725252654803,-598.96727796,0.00025205,2]
[336938927,1725252654812,-501.68855469,0.00025205,2]
[336938928,1725252654821,-500.0,0.00025205,2]
[336938929,1725252654829,-567.01,0.00025205,2]
[336938930,1725252654839,-500.0,0.00025205,2]
[336938931,1725252654849,-500.0,0.00025205,2]
[336938932,1725252654859,-500.0,0.00025205,2]
[336938933,1725252654868,-500.0,0.00025205,2]
[336938934,1725252654878,-500.0,0.00025205,2]
[336938935,1725252654888,-500.0,0.00025205,2]
[336938936,1725252654897,-500.0,0.00025205,2]
[336938937,1725252654906,-500.0,0.00025205,2]
[336938938,1725252654915,-500.0,0.00025205,2]
[336938939,1725252654924,-740.0,0.00025205,2]
[336938940,1725252654934,-500.0,0.00025205,2]
[336938941,1725252654943,-500.0,0.00025205,2]
[336938942,1725252654952,-500.0,0.00025205,2]
[336938943,1725252654961,-500.0,0.00025205,2]
[336938944,1725252654971,-500.0,0.00025205,2]
[336938945,1725252654980,-500.0,0.00025205,2]
[336938946,1725252654990,-573.14,0.00025205,2]
[336938947,1725252654999,-641.92,0.00025205,2]
[336938948,1725252655008,-500.0,0.00025205,2]
[336938949,1725252655017,-500.0,0.00025205,2]
[336938950,1725252655027,-500.0,0.00025205,2]
[336938951,1725252655036,-531.01,0.00025205,2]
[336938952,1725252655046,-500.0,0.00025205,2]
[336938953,1725252655055,-688.44,0.00025205,2]
[336938954,1725252655064,-500.0,0.00025205,2]
[336938955,1725252655073,-533.07142725,0.00025205,2]
[336938956,1725252655082,-500.0,0.00025205,2]
[336938957,1725252655091,-500.0,0.00025205,2]
[336938958,1725252655100,-500.0,0.00025205,2]
[336938959,1725252655110,-2985.88,0.00025205,2]
[336938960,1725252655119,-500.0,0.00025205,2]
[336938961,1725252655128,-500.0,0.00025205,2]
[336938962,1725252655137,-500.0,0.00025205,2]
[336938963,1725252655145,-500.0,0.00025205,2]
[336938964,1725252655155,-500.0,0.00025205,2]
[336938965,1725252655164,-500.0,0.00025205,2]
[336938966,1725252655173,-500.0,0.00025205,2]
[336938967,1725252655182,-500.0,0.00025205,2]
[336938968,1725252655191,-500.0,0.00025205,2]
[336938969,1725252655204,-989.89,0.00025205,2]
[336938970,1725252655220,-500.0,0.00025205,2]
[336938971,1725252655229,-500.0,0.00025205,2]
[336938972,1725252655239,-500.0,0.00025205,2]
[336938973,1725252655248,-500.0,0.00025205,2]
[336938974,1725252655258,-501.90515221,0.00025205,2]
[336938975,1725252655267,-500.0,0.00025205,2]
[336938976,1725252655277,-500.0,0.00025205,2]
[336938977,1725252655286,-500.0,0.00025205,2]
[336938978,1725252655295,-551.44,0.00025205,2]
[336938979,1725252655305,-500.0,0.00025205,2]
[336938980,1725252655315,-500.0,0.00025205,2]
[336938981,1725252655324,-500.0,0.00025205,2]
[336938982,1725252655333,-504.75777711,0.00025205,2]
[336938983,1725252655342,-500.0,0.00025205,2]
[336938984,1725252655351,-500.0,0.00025205,2]
[336938985,1725252655361,-500.0,0.00025205,2]
[336938986,1725252655370,-500.0,0.00025205,2]
[336938987,1725252655380,-500.0,0.00025205,2]
[336938988,1725252655389,-357.49324299,0.00025205,2]
[336938989,1725252655398,-500.0,0.00025205,2]
[336938990,1725252655407,-500.0,0.00025205,2]
[336938991,1725252655416,-500.0,0.00025205,2]
[336938992,1725252655424,-500.0,0.00025205,2]
[336938993,1725252655433,-500.0,0.00025205,2]
[336938994,1725252655442,-628.05,0.00025205,2]
[336938995,1725252655455,-500.0,0.00025205,2]
[336938996,1725252655464,-567.69,0.00025205,2]
[336938997,1725252655473,-500.0,0.00025205,2]
[336938998,1725252655482,-500.0,0.00025205,2]
[336938999,1725252655491,-500.0,0.00025205,2]
[336939000,1725252655500,-500.0,0.00025205,2]
[336939001,1725252655509,-827.31,0.00025205,2]
[336939002,1725252655518,-500.0,0.00025205,2]
[336939003,1725252655527,-518.95,0.00025205,2]
[336939004,1725252655536,-508.45873812,0.00025205,2]
[336939005,1725252655546,-528.41782275,0.00025205,2]
[336939006,1725252655711,-382.38217725,0.00025205,2]
[336939007,1725252655720,-500.0,0.00025205,2]
[336939008,1725252655730,-500.0,0.00025205,2]
[336939009,1725252655739,-500.0,0.00025205,2]
[336939010,1725252655749,-500.0,0.00025205,2]
[336939011,1725252655759,-500.0,0.00025205,2]
[336939012,1725252655768,-500.0,0.00025205,2]
[336939013,1725252655778,-500.0,0.00025205,2]
[336939014,1725252655788,-500.0,0.00025205,2]
[336939015,1725252655911,-500.0,0.00025205,2]
[336939016,1725252655921,-500.0,0.00025205,2]
[336939017,1725252655930,-500.0,0.00025205,2]
[336939018,1725252655939,-500.0,0.00025205,2]